bitfinex/quotes_BTCUSD_20240828
["timestamp","ask_amount","ask_price","bid_price","bid_amount"]
[1724809953233,0.505092,59395.0,59394.0,0.002]
[1724809953469,1.16468077,59395.0,59394.0,0.002]
[1724809953687,0.45196077,59395.0,59394.0,0.002]
[1724809953911,0.2839,59401.0,59395.0,0.002]
[1724809954125,0.2839,59401.0,59391.0,0.0058976]
[1724809954126,0.336706,59399.0,59391.0,0.0058976]
[1724809954298,0.168358,59398.0,59395.0,0.002]
[1724809954549,0.16846077,59399.0,59395.0,0.002]
[1724809954971,0.00838382,59398.0,59395.0,0.005]
[1724809955405,0.007,59401.0,59399.0,0.005]
[1724809955834,0.007,59401.0,59400.0,0.1582]
[1724809956056,0.007,59401.0,59400.0,0.2582]
[1724809956690,0.003,59401.0,59400.0,0.2582]
[1724809956934,0.16833,59407.0,59400.0,0.2582]
[1724809957155,0.16833,59407.0,59401.0,0.1]
[1724809957620,0.000816,59408.0,59402.0,0.005]
[1724809957845,0.000816,59408.0,59403.0,0.1268]
[1724809958056,0.000816,59408.0,59404.0,0.1]
[1724809958057,0.156916,59408.0,59404.0,0.1]
[1724809958237,0.156916,59408.0,59402.0,0.005]
[1724809958693,0.008,59407.0,59402.0,0.005]
[1724809959305,0.017,59407.0,59402.0,0.005]
[1724809959453,0.008,59407.0,59402.0,0.005]
[1724809959857,0.009,59407.0,59402.0,0.006]
[1724809960057,0.009,59407.0,59404.0,0.001]
[1724809960532,0.009,59407.0,59402.0,0.006]
[1724809961253,0.017,59407.0,59402.0,0.007]
[1724809962161,0.00842664,59406.0,59402.0,0.006]
[1724809962378,0.00842664,59406.0,59404.0,0.001]
[1724809962590,0.00842664,59406.0,59405.0,0.1493]
[1724809962811,0.00842664,59406.0,59405.0,0.2493]
[1724809963025,0.017,59407.0,59405.0,0.2493]
[1724809963232,0.00842664,59406.0,59405.0,0.2493]
[1724809963443,0.01642664,59406.0,59405.0,0.3738]
[1724809963667,0.02442664,59406.0,59405.0,0.3738]
[1724809963902,0.016,59406.0,59405.0,0.3738]
[1724809964104,0.008,59406.0,59405.0,0.3738]
[1724809964331,0.000816,59408.0,59405.0,0.105]
[1724809964540,0.000816,59408.0,59405.0,0.1]
[1724809964742,0.00864423,59407.0,59404.0,0.005]
[1724809964948,0.01746023,59407.0,59405.0,0.001]
[1724809965585,0.01746023,59407.0,59406.0,0.005]
[1724809966024,0.008816,59407.0,59406.0,0.005]
[1724809966231,0.000816,59407.0,59406.0,0.005]
[1724809966911,0.001816,59407.0,59406.0,0.011]
[1724809967342,0.001816,59407.0,59406.0,0.2816]
[1724809967548,0.001816,59407.0,59406.0,0.3816]
[1724809968641,0.001816,59407.0,59406.0,0.2621]
[1724809970153,0.001816,59407.0,59406.0,0.27479121]
[1724809970862,0.0164,59418.0,59417.0,0.005]
[1724809971080,0.0164,59418.0,59417.0,0.35766077]
[1724809971296,0.02508159,59418.0,59417.0,0.72723974]
[1724809971511,0.02508159,59418.0,59417.0,0.99074974]
[1724809971724,0.0164,59418.0,59417.0,0.95693974]
[1724809972149,0.0164,59418.0,59417.0,0.99074974]
[1724809972372,0.0164,59418.0,59417.0,1.15905174]
[1724809972581,0.0174,59418.0,59417.0,1.16905174]
[1724809972838,0.0204,59418.0,59417.0,1.16905174]
[1724809973072,0.0194,59418.0,59417.0,1.49565574]
[1724809973286,0.000816,59424.0,59423.0,0.448885]
[1724809973503,0.000816,59424.0,59423.0,1.07691577]
[1724809973716,0.000816,59424.0,59423.0,1.11072577]
[1724809974397,0.0263577,59455.0,59430.0,0.03381]
[1724809974605,0.1618,59456.0,59438.0,0.36957897]
[1724809974606,0.50540786,59441.0,59438.0,0.36957897]
[1724809974820,0.1618,59456.0,59438.0,0.78963974]
[1724809975037,0.1218,59459.0,59438.0,0.81263974]
[1724809975213,0.1218,59459.0,59438.0,0.93223974]
[1724809975416,0.0004,59459.0,59438.0,0.93223974]
[1724809975829,0.168584,59459.0,59438.0,0.94623974]
[1724809976030,0.0014,59439.0,59438.0,0.94623974]
[1724809976232,0.0014,59439.0,59438.0,0.93223974]
[1724809976430,0.0024,59439.0,59438.0,0.94623974]
[1724809976937,0.0004,59439.0,59438.0,0.94023974]
[1724809977141,0.002216,59439.0,59438.0,0.95423974]
[1724809977837,0.002216,59439.0,59438.0,0.94623974]
[1724809978379,0.002216,59439.0,59438.0,0.93223974]
[1724809978380,0.001216,59439.0,59438.0,0.93223974]
[1724809978833,0.001216,59439.0,59438.0,0.95885758]
[1724809979257,0.002216,59439.0,59438.0,0.96885758]
[1724809979494,0.002216,59439.0,59438.0,0.94485758]
[1724809979704,0.002216,59439.0,59438.0,0.95885758]
[1724809979890,0.003216,59439.0,59438.0,0.97285758]
[1724809980083,0.001216,59439.0,59438.0,0.95885758]
[1724809980253,0.001216,59439.0,59438.0,0.94485758]
[1724809980479,0.002216,59439.0,59438.0,0.95885758]
[1724809980692,0.002216,59439.0,59438.0,0.97285758]
[1724809980919,0.002216,59439.0,59438.0,1.14109958]
[1724809981116,0.002216,59439.0,59438.0,1.84787958]
[1724809981324,0.002216,59439.0,59438.0,1.55799878]
[1724809981525,0.002216,59439.0,59438.0,1.00666758]
[1724809981945,0.002216,59439.0,59438.0,0.99266758]
[1724809982170,0.002216,59439.0,59438.0,1.49739458]
[1724809982171,0.001216,59439.0,59438.0,1.49739458]
[1724809982373,0.001216,59439.0,59438.0,1.83387958]
[1724809982574,0.002216,59439.0,59438.0,1.84787958]
[1724809982839,0.0004,59459.0,59446.0,0.168217]
[1724809983131,0.0004,59459.0,59458.0,0.52587897]
[1724809983387,0.0004,59459.0,59458.0,0.105]
[1724809985534,0.0004,59459.0,59458.0,0.47657897]
[1724809986499,0.2773,59459.0,59458.0,0.002]
[1724809986727,0.61394377,59459.0,59458.0,0.002]
[1724809986975,0.61394377,59459.0,59458.0,0.006]
[1724809986976,0.45536614,59459.0,59458.0,0.006]
[1724809987199,0.28690537,59459.0,59458.0,0.006]
[1724809987642,0.28690537,59459.0,59458.0,0.002]
[1724809987865,0.45508837,59459.0,59458.0,0.002]
[1724809988110,1.29628114,59459.0,59458.0,0.002]
[1724809988358,0.4489,59453.0,59446.0,0.005]
[1724809988576,0.1509,59452.0,59447.0,0.005]
[1724809988811,0.2807,59457.0,59456.0,0.005]
[1724809989713,0.2807,59457.0,59452.0,0.005]
[1724809990219,0.2837,59457.0,59456.0,0.002]
[1724809990650,0.98307635,59457.0,59456.0,0.002]
[1724809990884,1.31945335,59457.0,59456.0,0.002]
[1724809991088,1.31945335,59457.0,59456.0,0.001]
[1724809991089,0.98007635,59457.0,59456.0,0.001]
[1724809991279,0.30705058,59457.0,59456.0,0.001]
[1724809991551,0.31105058,59457.0,59456.0,0.001]
[1724809991760,0.64769935,59457.0,59456.0,0.001]
[1724809991961,0.168199,59454.0,59447.0,0.005]
[1724809992387,0.1682,59453.0,59452.0,0.001]
[1724809992606,0.336386,59456.0,59452.0,0.001]
[1724809992607,0.16846077,59456.0,59452.0,0.001]
[1724809992821,0.31105058,59457.0,59451.0,0.005]
[1724809993037,0.30705058,59457.0,59456.0,0.001]
[1724809993240,0.98007635,59457.0,59456.0,0.001]
[1724809993415,0.95672577,59457.0,59456.0,0.002]
[1724809993631,0.95672577,59457.0,59456.0,0.001]
[1724809993866,0.1484,59455.0,59452.0,0.001]
[1724809994090,0.5046,59453.0,59452.0,0.001]
[1724809994312,1.27936077,59453.0,59452.0,0.001]
[1724809994770,0.60656077,59453.0,59452.0,0.001]
[1724809994975,0.2699,59453.0,59452.0,0.001]
[1724809995200,0.2699,59453.0,59451.0,0.005]
[1724809995629,0.2699,59453.0,59452.0,0.005]
[1724809995844,0.014,59457.0,59452.0,0.005]
[1724809996080,0.004,59457.0,59452.0,0.005]
[1724809996281,0.004,59453.0,59452.0,0.001]
[1724809996498,0.004,59453.0,59452.0,0.005]
[1724809996706,0.007,59455.0,59452.0,0.005]
[1724809996899,0.007,59455.0,59452.0,0.006]
[1724809997100,0.1477,59456.0,59452.0,0.005]
[1724809997646,0.002,59453.0,59452.0,0.005]
[1724809998082,0.002,59453.0,59452.0,0.006]
[1724809999375,0.001,59453.0,59452.0,0.005]
[1724809999850,0.0095571,59453.0,59452.0,0.005]
[1724810000045,0.315893,59456.0,59452.0,0.005]
[1724810000269,0.0135571,59453.0,59452.0,0.005]
[1724810000514,0.003,59453.0,59448.0,0.005]
[1724810000734,0.003,59453.0,59452.0,0.001]
[1724810000735,0.0125571,59453.0,59452.0,0.001]
[1724810001190,0.0125571,59453.0,59448.0,0.005]
[1724810001420,0.0095571,59453.0,59448.0,0.005]
[1724810001646,0.1477,59456.0,59448.0,0.005]
[1724810001870,0.00958887,59452.0,59448.0,0.005]
[1724810002091,0.2719,59450.0,59449.0,0.002]
[1724810002307,0.168211,59449.0,59441.0,0.005]
[1724810002538,0.33667177,59449.0,59441.0,0.005]
[1724810002753,0.168219,59447.0,59441.0,0.005]
[1724810002963,0.50488277,59449.0,59439.0,0.0008965]
[1724810002964,0.841113,59445.0,59439.0,0.0008965]
[1724810003163,0.1218,59445.0,59439.0,0.0008965]
[1724810003364,1.120982,59440.0,59439.0,0.0008965]
[1724810003564,1.457455,59440.0,59439.0,0.0008965]
[1724810003737,1.46707274,59440.0,59439.0,0.0008965]
[1724810003944,1.63562438,59440.0,59439.0,0.0008965]
[1724810004151,1.66189408,59440.0,59439.0,0.0008965]
[1724810004496,1.32542108,59440.0,59439.0,0.0018965]
[1724810004929,0.98894808,59440.0,59439.0,0.0008965]
[1724810005153,1.33742108,59440.0,59439.0,0.0018965]
[1724810005601,1.67389408,59440.0,59439.0,0.0018965]
[1724810005797,1.34742108,59440.0,59439.0,0.0028965]
[1724810006016,1.68389408,59440.0,59439.0,0.0028965]
[1724810006236,1.33742108,59440.0,59439.0,0.0018965]
[1724810006469,1.67389408,59440.0,59439.0,0.0018965]
[1724810006696,1.68389408,59440.0,59439.0,0.0028965]
[1724810006900,1.67189408,59440.0,59439.0,0.0018965]
[1724810007493,1.65753351,59440.0,59439.0,0.0028965]
[1724810007700,1.65753351,59440.0,59439.0,0.0018965]
[1724810007701,1.32106051,59440.0,59439.0,0.0018965]
[1724810008097,1.33306051,59440.0,59439.0,0.0028965]
[1724810008656,0.99658751,59440.0,59439.0,0.0018965]
[1724810008904,0.98658751,59440.0,59439.0,0.0018965]
[1724810009114,0.66011451,59440.0,59439.0,0.0028965]
[1724810009275,0.16541774,59440.0,59439.0,0.0028965]
[1724810009488,0.13141774,59440.0,59439.0,0.0008965]
[1724810009687,0.00961774,59440.0,59439.0,0.0008965]
[1724810009891,0.01,59440.0,59439.0,0.0018965]
[1724810010102,0.01912816,59440.0,59439.0,0.1678965]
[1724810010317,0.01,59440.0,59439.0,0.1678965]
[1724810010514,0.01,59440.0,59439.0,0.2678965]
[1724810010707,0.022,59440.0,59439.0,0.2688965]
[1724810011090,0.1196,59452.0,59445.0,0.005]
[1724810011271,0.168206,59451.0,59445.0,0.005]
[1724810011473,0.00912816,59451.0,59445.0,0.005]
[1724810011685,0.32776077,59450.0,59441.0,0.005]
[1724810012128,0.168217,59447.0,59445.0,0.001]
[1724810012329,0.168219,59446.0,59445.0,0.001]
[1724810012604,0.17734716,59446.0,59445.0,0.001]
[1724810012810,0.00912816,59446.0,59445.0,0.001]
[1724810013259,0.168219,59447.0,59445.0,0.001]
[1724810013508,0.00912816,59446.0,59445.0,0.001]
[1724810013709,0.00912816,59446.0,59441.0,0.006]
[1724810013915,0.00912816,59446.0,59445.0,0.005]
[1724810014121,0.009,59450.0,59447.0,0.005]
[1724810014371,0.019,59450.0,59447.0,0.005]
[1724810015049,0.00912816,59449.0,59447.0,0.005]
[1724810015473,0.00912816,59449.0,59447.0,0.006]
[1724810015677,0.008,59450.0,59447.0,0.006]
[1724810015678,0.00912816,59448.0,59447.0,0.006]
[1724810016107,0.008,59450.0,59448.0,0.005]
[1724810016325,0.008,59449.0,59448.0,0.005]
[1724810016534,0.01712816,59449.0,59448.0,0.005]
[1724810016755,0.008,59450.0,59448.0,0.005]
[1724810016980,0.3627442,59455.0,59440.0,0.005]
[1724810016981,0.1216,59444.0,59440.0,0.005]
[1724810017438,0.00934635,59443.0,59440.0,0.005]
[1724810017658,0.17757435,59443.0,59440.0,0.005]
[1724810017858,0.00934635,59443.0,59440.0,0.005]
[1724810018852,0.01134635,59443.0,59440.0,0.005]
[1724810019464,0.00934635,59443.0,59440.0,0.005]
[1724810019662,0.002,59443.0,59440.0,0.005]
[1724810019904,0.00934635,59442.0,59440.0,0.005]
[1724810021645,0.02635556,59447.0,59440.0,0.005]
[1724810021882,0.00934635,59441.0,59440.0,0.006]
[1724810022103,0.002,59443.0,59440.0,0.006]
[1724810022302,0.19457356,59447.0,59440.0,0.006]
[1724810022457,0.16822,59446.0,59440.0,0.006]
[1724810022660,0.001,59442.0,59440.0,0.006]
[1724810023069,0.168234,59441.0,59440.0,0.001]
[1724810023276,0.17774916,59441.0,59436.0,0.005]
[1724810023625,0.17774916,59441.0,59440.0,0.001]
[1724810023626,0.00951516,59441.0,59440.0,0.001]
[1724810023798,0.00951516,59441.0,59436.0,0.005]
[1724810023973,0.336452,59444.0,59436.0,0.005]
[1724810024173,0.168232,59442.0,59440.0,0.001]
[1724810024592,0.006,59447.0,59440.0,0.001]
[1724810024593,0.33669477,59441.0,59440.0,0.001]
[1724810024790,0.168236,59440.0,59439.0,0.0028965]
[1724810024968,1.16724277,59440.0,59439.0,0.0008965]
[1724810025196,1.50371577,59440.0,59439.0,0.0008965]
[1724810025881,1.17124277,59440.0,59439.0,0.0008965]
[1724810026085,0.33006077,59440.0,59439.0,0.0008965]
[1724810026264,0.004,59440.0,59439.0,0.0008965]
[1724810026885,0.007,59440.0,59439.0,0.0008965]
[1724810027327,0.175236,59440.0,59439.0,0.0008965]
[1724810027539,0.175236,59440.0,59439.0,0.1486965]
[1724810027540,0.007,59440.0,59439.0,0.1486965]
[1724810028849,0.007,59440.0,59439.0,0.0008965]
[1724810029505,0.007,59440.0,59439.0,0.1539965]
[1724810029954,0.007,59440.0,59439.0,0.2539965]
[1724810030273,0.007,59440.0,59439.0,0.0008965]
[1724810030478,0.49539677,59440.0,59439.0,0.0008965]
[1724810030677,0.84046023,59440.0,59439.0,0.0008965]
[1724810030888,1.17693323,59440.0,59439.0,0.0008965]
[1724810031086,1.20329086,59440.0,59439.0,0.0008965]
[1724810031288,0.86681786,59440.0,59439.0,0.0008965]
[1724810032310,1.20329086,59440.0,59439.0,0.0008965]
[1724810032649,1.51340623,59440.0,59439.0,0.0008965]
[1724810032797,2.15019817,59440.0,59439.0,0.0008965]
[1724810033000,1.81372517,59440.0,59439.0,0.0008965]
[1724810033228,2.15019817,59440.0,59439.0,0.0008965]
[1724810033433,1.6688475,59440.0,59439.0,0.0008965]
[1724810033825,1.79170528,59440.0,59439.0,0.0008965]
[1724810034041,1.79170528,59440.0,59439.0,0.0018965]
[1724810034042,1.6758475,59440.0,59439.0,0.0018965]
[1724810034276,1.6618475,59440.0,59439.0,0.0008965]
[1724810034504,1.6618475,59440.0,59439.0,0.0018965]
[1724810034505,1.6758475,59440.0,59439.0,0.0018965]
[1724810034771,1.76134832,59440.0,59439.0,0.0028965]
[1724810034977,1.77253063,59440.0,59439.0,0.0018965]
[1724810035192,1.32678404,59440.0,59439.0,0.0018965]
[1724810035474,1.39111839,59440.0,59439.0,0.0028965]
[1724810035723,1.31444277,59440.0,59439.0,0.0028965]
[1724810035984,0.64149677,59440.0,59439.0,0.0028965]
[1724810036202,0.97796977,59440.0,59439.0,0.0028965]
[1724810036436,1.31444277,59440.0,59439.0,0.0028965]
[1724810036681,0.96796977,59440.0,59439.0,0.0018965]
[1724810036896,1.00832782,59440.0,59439.0,0.0028965]
[1724810037127,0.99432782,59440.0,59439.0,0.0018965]
[1724810037333,0.68716977,59440.0,59439.0,0.0018965]
[1724810037547,0.36369677,59440.0,59439.0,0.0028965]
[1724810037770,0.16846077,59440.0,59439.0,0.0008965]
[1724810038216,0.19646077,59440.0,59439.0,0.0028965]
[1724810038473,0.19646077,59440.0,59439.0,0.0018965]
[1724810038724,0.18327877,59440.0,59439.0,0.0008965]
[1724810039201,0.014818,59440.0,59439.0,0.2847965]
[1724810039415,0.014818,59440.0,59439.0,0.3847965]
[1724810039839,0.014818,59440.0,59439.0,0.3857965]
[1724810039840,0.023818,59440.0,59439.0,0.3857965]
[1724810040054,0.009818,59440.0,59439.0,0.3857965]
[1724810040335,0.009818,59440.0,59439.0,0.3867965]
[1724810040551,0.017818,59440.0,59439.0,0.3867965]
[1724810041042,0.017818,59440.0,59439.0,0.3917965]
[1724810042861,0.017818,59440.0,59439.0,0.3907965]
[1724810042862,0.009818,59440.0,59439.0,0.3907965]
[1724810043092,0.009818,59440.0,59439.0,0.3987965]
[1724810043093,0.010818,59440.0,59439.0,0.3987965]
[1724810043766,0.001818,59440.0,59439.0,0.3977965]
[1724810043985,0.001818,59440.0,59439.0,0.3957965]
[1724810044226,0.002818,59440.0,59439.0,0.2786965]
[1724810044454,0.002818,59440.0,59439.0,0.2626965]
[1724810044455,0.000818,59440.0,59439.0,0.2626965]
[1724810044950,0.002818,59440.0,59439.0,0.2816965]
[1724810045672,0.002818,59440.0,59439.0,0.1248965]
[1724810045908,0.002818,59440.0,59439.0,0.0248965]
[1724810046140,0.002818,59440.0,59439.0,0.1248965]
[1724810046357,0.001818,59440.0,59439.0,0.1158965]
[1724810046583,0.002818,59440.0,59439.0,0.0068965]
[1724810046859,0.001818,59440.0,59439.0,0.0068965]
[1724810047088,0.127818,59440.0,59439.0,0.0088965]
[1724810047322,0.13548186,59440.0,59439.0,0.0038965]
[1724810047553,0.13548186,59440.0,59439.0,0.0078965]
[1724810047789,0.13448186,59440.0,59439.0,0.0008965]
[1724810048266,0.13448186,59440.0,59439.0,0.0038965]
[1724810049006,0.96625163,59440.0,59439.0,0.0038965]
[1724810049265,1.63919763,59440.0,59439.0,0.0038965]
[1724810049485,1.66553873,59440.0,59439.0,0.0038965]
[1724810049961,1.93475515,59440.0,59439.0,0.0008965]
[1724810050199,1.81346998,59440.0,59439.0,0.0028965]
[1724810050425,1.78827988,59440.0,59439.0,0.0028965]
[1724810050718,1.42980688,59440.0,59439.0,0.0008965]
[1724810050940,1.10650548,59440.0,59439.0,0.0028965]
[1724810051183,1.35508489,59440.0,59439.0,0.0018965]
[1724810051403,1.36708489,59440.0,59439.0,0.0028965]
[1724810051637,1.34308489,59440.0,59439.0,0.0018965]
[1724810052558,1.34308489,59440.0,59439.0,0.0008965]
[1724810052559,1.32908489,59440.0,59439.0,0.0008965]
[1724810052818,0.70801189,59440.0,59439.0,0.0008965]
[1724810053037,0.73401189,59440.0,59439.0,0.0028965]
[1724810053267,0.72634803,59440.0,59439.0,0.0028965]
[1724810053494,0.70034803,59440.0,59439.0,0.0008965]
[1724810053715,0.72634803,59440.0,59439.0,0.0028965]
[1724810053937,0.72634803,59440.0,59439.0,0.0018965]
[1724810053938,1.03646077,59440.0,59439.0,0.0018965]
[1724810054188,1.02246077,59440.0,59439.0,0.0008965]
[1724810054448,1.02246077,59440.0,59439.0,0.0018965]
[1724810054449,1.03446077,59440.0,59439.0,0.0018965]
[1724810054683,0.71198777,59440.0,59439.0,0.0028965]
[1724810054898,0.68798777,59440.0,59439.0,0.0018965]
[1724810055118,1.02446077,59440.0,59439.0,0.0018965]
[1724810055348,1.18486077,59440.0,59439.0,0.0018965]
[1724810055797,1.17086077,59440.0,59439.0,0.0008965]
[1724810056009,1.18386077,59440.0,59439.0,0.0018965]
[1724810056736,0.83438777,59440.0,59439.0,0.0008965]
[1724810056950,0.83438777,59440.0,59439.0,0.0018965]
[1724810056951,0.85938777,59440.0,59439.0,0.0018965]
[1724810057168,1.19586077,59440.0,59439.0,0.0018965]
[1724810057382,1.20821922,59440.0,59439.0,0.0008965]
[1724810057609,1.18186077,59440.0,59439.0,0.0008965]
[1724810057840,1.18186077,59440.0,59439.0,0.0018965]
[1724810057841,0.85838777,59440.0,59439.0,0.0018965]
[1724810058548,0.36151477,59440.0,59439.0,0.0018965]
[1724810058771,0.69798777,59440.0,59439.0,0.0018965]
[1724810059003,1.03446077,59440.0,59439.0,0.0018965]
[1724810059503,0.69798777,59440.0,59439.0,0.0018965]
[1724810060464,0.19327877,59440.0,59439.0,0.0018965]
[1724810062631,0.19327877,59440.0,59439.0,0.1608965]
[1724810062632,0.024818,59440.0,59439.0,0.1608965]
[1724810062845,0.024818,59440.0,59439.0,0.1658965]
[1724810063063,0.024818,59440.0,59439.0,0.2658965]
[1724810063578,0.000818,59440.0,59439.0,0.2648965]
[1724810064078,0.000818,59440.0,59439.0,0.55886543]
[1724810064079,0.012818,59440.0,59439.0,0.55886543]
[1724810064336,0.000818,59440.0,59439.0,0.55386543]
[1724810064587,0.013818,59440.0,59439.0,0.67826543]
[1724810064797,0.013818,59440.0,59439.0,0.67726543]
[1724810065293,0.013818,59440.0,59439.0,0.68126543]
[1724810065515,0.013818,59440.0,59439.0,0.69404563]
[1724810065730,0.000818,59440.0,59439.0,0.69304563]
[1724810066063,0.000818,59440.0,59439.0,0.8865064]
[1724810066539,0.000818,59440.0,59439.0,0.8805064]
[1724810066747,0.002818,59440.0,59439.0,0.8985064]
[1724810067203,0.001818,59440.0,59439.0,0.8925064]
[1724810067446,0.000818,59440.0,59439.0,0.8865064]
[1724810067706,0.002818,59440.0,59439.0,0.8945064]
[1724810067917,0.001818,59440.0,59439.0,0.8885064]
[1724810068156,0.002818,59440.0,59439.0,0.8945064]
[1724810068835,0.001818,59440.0,59439.0,0.8865064]
[1724810069311,0.002818,59440.0,59439.0,0.8985064]
[1724810069490,0.001818,59440.0,59439.0,0.8925064]
[1724810069759,0.000818,59440.0,59439.0,0.8805064]
[1724810069963,0.002818,59440.0,59439.0,0.8975064]
[1724810070196,0.002818,59440.0,59439.0,0.8925064]
[1724810070437,0.002818,59440.0,59439.0,0.8975064]
[1724810070647,0.003818,59440.0,59439.0,0.8975064]
[1724810072331,0.000815,59456.0,59445.0,0.1594]
[1724810072548,0.000815,59456.0,59455.0,0.57296893]
[1724810072780,0.000815,59456.0,59455.0,0.7644297]
[1724810073007,0.000815,59456.0,59455.0,0.8644297]
[1724810073646,0.002815,59456.0,59455.0,0.8644297]
[1724810074069,0.002815,59456.0,59455.0,0.8694297]
[1724810074278,0.003815,59456.0,59455.0,0.8694297]
[1724810074931,0.002815,59456.0,59455.0,0.8694297]
[1724810075350,0.002815,59456.0,59455.0,0.8834297]
[1724810076515,0.002815,59456.0,59455.0,0.89586948]
[1724810087261,0.002815,59456.0,59455.0,0.91151196]
[1724810087872,1e-08,59456.0,59455.0,0.91151196]
[1724810089538,1e-08,59456.0,59455.0,1.07970596]
[1724810089732,1e-08,59456.0,59455.0,0.89586948]
[1724810089958,1e-08,59456.0,59455.0,1.06406348]
[1724810090169,1e-08,59456.0,59455.0,0.89586948]
[1724810090497,1e-08,59456.0,59455.0,0.31243978]
[1724810090696,0.27060001,59456.0,59455.0,0.021]
[1724810091340,0.27060001,59456.0,59455.0,0.024]
[1724810091556,1e-08,59456.0,59455.0,0.01]
[1724810091751,1e-08,59456.0,59455.0,0.015]
[1724810092137,1e-08,59456.0,59455.0,0.01]
[1724810092344,0.0004,59459.0,59458.0,0.002]
[1724810093437,0.0004,59459.0,59455.0,0.017]
[1724810093641,0.0004,59459.0,59455.0,0.015]
[1724810094068,0.0004,59459.0,59455.0,0.005]
[1724810094279,0.0004,59459.0,59458.0,0.002]
[1724810094453,0.0004,59459.0,59458.0,0.004]
[1724810094874,0.0004,59459.0,59458.0,0.002]
[1724810095080,0.0004,59459.0,59458.0,0.006]
[1724810095466,0.0004,59459.0,59458.0,0.009]
[1724810095677,0.0004,59459.0,59458.0,0.011]
[1724810095891,0.1498,59459.0,59458.0,0.006]
[1724810096056,0.266,59459.0,59458.0,0.006]
[1724810096259,0.266,59459.0,59458.0,0.002]
[1724810096518,0.266,59459.0,59458.0,0.009]
[1724810096702,0.266,59459.0,59458.0,0.007]
[1724810096898,0.1162,59458.0,59455.0,0.002]
[1724810097125,0.2656,59458.0,59457.0,0.002]
[1724810098358,0.2686,59458.0,59457.0,0.002]
[1724810098875,0.2706,59458.0,59457.0,0.002]
[1724810099495,0.2686,59458.0,59457.0,0.002]
[1724810099849,0.2696,59458.0,59457.0,0.002]
[1724810100060,0.2686,59458.0,59457.0,0.002]
[1724810100269,0.2656,59458.0,59457.0,0.002]
[1724810100467,0.43406077,59458.0,59457.0,0.002]
[1724810100672,0.43406077,59458.0,59455.0,0.0008998]
[1724810100673,0.504565,59457.0,59456.0,0.002]
[1724810100889,1.120357,59456.0,59455.0,0.0028998]
[1724810101091,0.95243477,59456.0,59455.0,0.0008998]
[1724810101292,0.61605177,59456.0,59455.0,0.0008998]
[1724810101517,0.61605177,59456.0,59455.0,0.0028998]
[1724810101933,0.95243477,59456.0,59455.0,0.0028998]
[1724810102135,0.61605177,59456.0,59455.0,0.0028998]
[1724810102343,0.95243477,59456.0,59455.0,0.0028998]
[1724810102544,0.61605177,59456.0,59455.0,0.0028998]
[1724810102832,1.28881777,59456.0,59455.0,0.0028998]
[1724810103432,1.28881777,59456.0,59455.0,0.0038998]
[1724810103633,1.29481777,59456.0,59455.0,0.0038998]
[1724810103837,1.32116804,59456.0,59455.0,0.0038998]
[1724810104050,1.65755104,59456.0,59455.0,0.0038998]
[1724810104253,1.65155104,59456.0,59455.0,0.0008998]
[1724810104689,1.65155104,59456.0,59455.0,0.0018998]
[1724810104690,1.82584825,59456.0,59455.0,0.0018998]
[1724810104876,1.109842,59450.0,59449.0,0.002]
[1724810105110,1.27830277,59450.0,59449.0,0.002]
[1724810105317,1.27830277,59450.0,59444.0,0.002]
[1724810105318,0.325423,59445.0,59444.0,0.002]
[1724810105572,0.44726077,59445.0,59444.0,0.002]
[1724810105808,0.61548277,59445.0,59444.0,0.002]
[1724810106262,0.168227,59444.0,59443.0,0.002]
[1724810106517,0.33668777,59444.0,59443.0,0.002]
[1724810106999,0.16846077,59444.0,59443.0,0.002]
[1724810107231,0.2788,59445.0,59444.0,0.002]
[1724810107701,0.2788,59445.0,59443.0,0.005]
[1724810108355,0.2788,59445.0,59444.0,0.002]
[1724810108571,0.02635373,59450.0,59443.0,0.007]
[1724810108572,0.2729,59449.0,59443.0,0.007]
[1724810108793,0.02635373,59450.0,59449.0,0.002]
[1724810109028,0.02635373,59450.0,59446.0,0.005]
[1724810109241,0.02635373,59450.0,59449.0,0.002]
[1724810109457,0.02635373,59450.0,59446.0,0.005]
[1724810110144,0.02635373,59450.0,59448.0,0.005]
[1724810110402,0.004,59450.0,59448.0,0.005]
[1724810110645,0.004,59450.0,59449.0,0.005]
[1724810111090,0.01,59450.0,59449.0,0.1498]
[1724810111321,0.01,59450.0,59449.0,0.2498]
[1724810111808,0.119318,59459.0,59449.0,0.2498]
[1724810111809,0.000818,59456.0,59449.0,0.2498]
[1724810112061,0.01,59450.0,59449.0,0.2508]
[1724810112301,0.006,59450.0,59449.0,0.2508]
[1724810113446,0.006,59450.0,59449.0,0.108]
[1724810113678,0.1217,59452.0,59451.0,0.005]
[1724810114126,0.1448,59455.0,59451.0,0.005]
[1724810114600,0.1448,59455.0,59454.0,0.002]
[1724810114823,0.000818,59456.0,59452.0,0.005]
[1724810115051,0.000818,59456.0,59454.0,0.002]
[1724810115052,0.16846077,59455.0,59454.0,0.002]
[1724810115281,0.16846077,59455.0,59449.0,0.004]
[1724810115282,0.1461,59454.0,59449.0,0.004]
[1724810115511,0.33666177,59453.0,59449.0,0.004]
[1724810115741,0.33666177,59453.0,59446.0,0.005]
[1724810115742,0.1461,59454.0,59448.0,0.005]
[1724810115998,0.1217,59455.0,59448.0,0.005]
[1724810116209,0.281,59455.0,59454.0,0.005]
[1724810116426,0.281,59455.0,59451.0,0.005]
[1724810116427,0.285,59455.0,59451.0,0.005]
[1724810116714,0.285,59455.0,59454.0,0.002]
[1724810116715,0.291,59455.0,59454.0,0.002]
[1724810116929,0.006,59455.0,59451.0,0.001]
[1724810117166,0.000818,59456.0,59453.0,0.005]
[1724810117384,0.006,59455.0,59454.0,0.001]
[1724810118031,0.003,59454.0,59453.0,0.005]